bitfinex-derivatives/quotes_BNBF0:USTF0_20250128
["timestamp","ask_amount","ask_price","bid_price","bid_amount"]
[1738050324164,0.24451734,680.2,679.05,1.09372477]
[1738050324360,0.24451734,680.19,679.06,0.27038246]
[1738050324563,0.24451734,680.22,679.06,0.27038246]
[1738050324756,0.24451734,680.21,679.06,0.27038246]
[1738050324961,5.25802041,687.23,679.06,0.27038246]
[1738050324962,0.24451734,680.22,679.06,0.27038246]
[1738050325162,0.24451734,680.21,679.0,0.27038246]
[1738050325360,1.10004359,680.24,678.99,1.53584747]
[1738050325565,1.10004359,680.24,679.0,0.27037035]
[1738050325566,0.24450848,680.23,679.0,0.27037035]
[1738050325765,0.24450811,680.22,679.01,0.2703699]
[1738050325969,1.10004359,680.24,679.02,0.2703699]
[1738050326260,0.24450966,680.23,679.03,0.2703699]
[1738050326460,0.24450966,680.23,679.0,0.2703699]
[1738050326667,0.24450966,680.23,679.01,0.2703699]
[1738050326866,0.24450966,680.23,679.02,0.2703699]
[1738050327067,1.10004359,680.24,679.03,0.2703699]
[1738050327267,1.10004359,680.24,679.0,0.2703699]
[1738050327466,1.10004359,680.24,678.99,1.53584747]
[1738050327467,1.10004359,680.24,679.01,0.2703699]
[1738050327670,1.10004359,680.24,679.02,0.2703699]
[1738050327867,1.10004359,680.24,679.0,0.2703699]
[1738050328069,1.10004359,680.24,679.01,0.2703699]
[1738050329164,1.10004359,680.24,679.0,1.09372477]
[1738050330970,1.09947313,680.47,678.99,1.53584747]
[1738050330971,1.10004359,680.23,679.02,1.09372477]
[1738050331172,1.10004359,680.23,679.03,0.29453779]
[1738050334377,1.10004359,680.51,679.03,0.29453779]
[1738050335078,1.10004359,680.51,679.04,0.27031377]
[1738050335276,1.10004359,680.51,679.05,0.29452912]
[1738050336775,1.10004359,680.51,679.06,0.27031609]
[1738050336776,0.24445518,680.5,679.06,0.27031609]
[1738050336975,0.24445518,680.5,679.07,0.29452044]
[1738050337173,0.24445518,680.5,679.08,0.27031609]
[1738050337473,0.24445518,680.5,679.09,0.29451177]
[1738050338979,0.24445518,680.5,679.1,0.27031757]
[1738050339179,0.24445518,680.5,679.11,0.29450309]
[1738050339380,0.24445518,680.5,679.12,0.27031757]
[1738050339584,0.24445518,680.5,679.12,0.56481633]
[1738050339774,0.24445518,680.5,679.13,0.27031757]
[1738050339974,1.10004359,680.51,679.12,0.29449876]
[1738050340184,0.24445447,680.5,679.13,0.27031541]
[1738050340475,0.29390586,680.49,679.13,0.27031541]
[1738050340781,1.10004359,680.46,679.13,0.27031541]
[1738050340978,0.5383776,680.45,679.13,0.27031541]
[1738050341176,0.24445447,680.44,679.13,0.27031541]
[1738050341982,0.24446974,680.43,679.14,0.27033085]
[1738050342186,0.24446974,680.42,679.15,0.27033085]
[1738050342379,0.24446974,680.44,679.13,0.27033085]
[1738050342577,0.29392313,680.45,679.14,0.27033085]
[1738050342578,0.24446974,680.43,679.14,0.27033085]
[1738050342776,0.24446974,680.42,679.15,0.27033085]
[1738050342977,0.24446974,680.44,679.13,0.27033085]
[1738050343180,0.24446974,680.43,679.12,0.29449876]
[1738050343377,1.10004359,680.32,679.13,0.27034467]
[1738050343577,1.10004359,680.32,679.12,0.29449876]
[1738050343781,0.24448149,680.31,679.13,0.27034267]
[1738050346385,1.10004359,680.28,679.13,0.27034267]
[1738050346686,0.24448149,680.27,679.13,0.27034267]
[1738050346885,1.10004359,680.28,679.13,0.27034267]
[1738050347284,1.10004359,680.28,679.12,0.29449876]
[1738050347285,0.24447547,680.27,679.14,0.2703366]
[1738050347583,1.10004359,680.28,679.12,0.29449876]
[1738050347584,1.10004359,680.28,679.15,0.2703366]
[1738050347780,1.10004359,680.28,679.13,0.2703366]
[1738050347984,1.10004359,680.28,679.14,0.27033722]
[1738050348184,1.10004359,680.28,679.13,0.27033722]
[1738050348383,1.10004359,680.28,679.14,0.27033722]
[1738050348683,1.10004359,680.28,679.15,0.27033722]
[1738050348884,1.10004359,680.28,679.12,0.29449876]
[1738050349084,0.29392313,680.45,679.12,0.29449876]
[1738050349085,1.10004359,680.29,679.12,0.29449876]
[1738050349286,1.10004359,680.29,679.13,0.27033873]
[1738050349585,0.24447945,680.28,679.13,0.27033873]
[1738050352484,1.10004359,680.29,679.13,0.27033873]
[1738050352687,1.10004359,680.28,679.13,0.27033873]
[1738050352986,0.24447492,680.27,679.13,0.27033873]
[1738050353788,1.10004359,680.28,679.12,0.29449876]
[1738050357692,1.10004359,680.34,679.12,0.29449876]
[1738050367403,1.10004359,680.18,679.21,1.09372477]
[1738050371205,0.74461958,680.44,679.12,0.29449876]
[1738050371206,1.10004359,680.16,679.22,1.09372477]
[1738050374003,0.29392313,680.45,679.14,1.53583618]
[1738050374004,1.10004359,680.19,679.18,1.09372477]
[1738050376706,1.10004359,680.22,679.14,1.53583618]
[1738050377805,0.24456566,680.21,679.14,1.53583618]
[1738050378005,0.24456566,680.21,679.12,0.29449876]
[1738050379204,1.10004359,680.22,679.12,0.29449876]
[1738050379403,0.24457875,680.21,679.12,0.29449876]
[1738050380007,1.10004359,680.01,679.12,0.29449876]
[1738050383412,1.10004359,680.13,679.12,0.29449876]
[1738050383613,0.24457767,680.12,679.12,0.29449876]
[1738050386413,0.24457767,680.19,679.12,0.29449876]
[1738050389816,1.10004359,680.2,679.12,0.29449876]
[1738050390016,0.24457698,680.19,679.12,0.29449876]
[1738050390217,1.10004359,680.2,679.12,0.29449876]
[1738050390421,0.24457567,680.19,679.12,0.29449876]
[1738050392017,0.24457567,680.22,679.12,0.29449876]
[1738050392214,0.24457567,680.21,679.12,0.29449876]
[1738050393514,0.29402252,680.22,679.12,0.29449876]
[1738050393720,1.10004359,680.19,679.12,0.29449876]
[1738050394022,0.24457349,680.18,679.12,0.29449876]
[1738050394422,0.24457349,680.18,678.71,1.09372477]
[1738050394723,0.24457349,680.18,678.72,0.27046608]
[1738050395226,1.10004359,680.19,678.71,1.09372477]
[1738050395422,0.24461944,680.18,678.73,1.53642384]
[1738050395619,0.24461944,680.18,678.74,0.2704828]
[1738050396726,0.24461944,680.18,678.73,1.53642384]
[1738050396925,1.10004359,680.14,678.73,1.53642384]
[1738050397118,0.24461944,680.13,678.73,1.53642384]
[1738050398327,0.29407007,680.11,678.73,1.53642384]
[1738050398521,0.24461944,680.1,678.73,1.53642384]
[1738050399027,0.24470349,680.09,678.73,1.53642384]
[1738050399220,0.24470349,680.1,678.73,1.53642384]
[1738050399421,0.24470349,680.09,678.73,1.53642384]
[1738050399619,1.34474708,680.1,678.73,1.53642384]
[1738050399820,0.24470349,680.09,678.73,1.53642384]
[1738050400626,0.24470842,680.08,678.73,1.53642384]
[1738050401026,0.24470842,680.07,678.73,1.53642384]
[1738050401228,0.24470842,680.09,678.73,1.53642384]
[1738050402533,1.10004359,680.0,678.73,1.53642384]
[1738050402725,0.24470373,679.99,678.73,1.53642384]
[1738050403932,0.29412629,679.98,678.73,1.53642384]
[1738050404232,0.2447004,679.97,678.73,1.53642384]
[1738050404826,0.29412629,679.98,678.73,1.53642384]
[1738050405430,0.24466631,679.97,678.73,1.53642384]
[1738050405629,0.24466631,679.97,678.74,0.27052951]
[1738050407831,0.29412629,679.98,678.73,1.53642384]
[1738050408034,0.24465754,679.97,678.74,0.27052151]
[1738050408434,0.53878816,679.97,678.73,1.53642384]
[1738050408736,0.24465754,679.96,678.73,1.53642384]
[1738050409534,0.24465754,679.96,678.74,0.27050845]
[1738050411235,0.29413062,679.97,678.73,1.53642384]
[1738050411430,0.24462761,679.96,678.74,0.27049116]
[1738050415137,0.24462761,679.96,678.75,0.2946593]
[1738050415337,0.24462761,679.96,678.76,0.27049116]
[1738050416637,0.24462761,679.96,678.77,0.29465061]
[1738050416940,0.24462761,679.96,678.78,0.27049116]
[1738050424743,0.29413062,679.97,678.79,0.29464193]
[1738050424940,0.29413062,679.97,678.8,0.27049116]
[1738050425136,0.29413062,679.97,678.8,0.56512875]
[1738050425337,0.29413062,679.97,678.81,0.27049116]
[1738050430744,0.29413062,679.97,678.82,0.29462891]
[1738050430944,0.29413062,679.97,678.83,0.27049116]
[1738050431139,0.29413062,679.97,678.83,0.56511573]
[1738050431338,0.29413062,679.97,678.84,0.27049116]
[1738050439756,0.29413062,679.97,678.85,0.27042075]
[1738050439952,0.29413062,679.97,678.86,0.27042075]
[1738050440152,0.29413062,679.97,678.87,0.27042075]
[1738050440452,0.29413062,679.97,678.88,0.27042075]
[1738050440656,0.29413062,679.97,678.84,0.27042075]
[1738050440952,0.29413062,679.97,678.85,0.27042075]
[1738050441145,0.29413062,679.97,678.84,0.27042075]
[1738050441345,0.29413062,679.97,678.85,0.27042583]
[1738050441549,0.29413062,679.97,678.84,0.27042583]
[1738050441745,0.29413062,679.97,678.85,0.27042583]
[1738050441946,0.29413062,679.97,678.86,0.27042583]
[1738050442149,0.29413062,679.97,678.87,0.27042583]
[1738050442348,0.29413062,679.97,678.84,0.27042583]
[1738050442552,0.29413062,679.97,678.85,0.27042583]
[1738050442853,0.29413062,679.97,678.86,0.27042583]
[1738050443046,0.29413062,679.97,678.87,0.27042121]
[1738050443251,0.29413062,679.97,678.88,0.27042121]
[1738050443448,0.29413062,679.97,678.89,0.27042121]
[1738050443647,0.29413062,679.97,678.83,0.29462457]
[1738050443648,0.29413062,679.97,678.9,0.27042121]
[1738050443854,0.29413062,679.97,678.84,0.27042121]
[1738050444055,0.29413062,679.97,678.85,0.27042121]
[1738050444250,0.29413062,679.97,678.84,0.27042121]
[1738050444456,0.29413062,679.97,678.85,0.27042121]
[1738050444654,0.29413062,679.97,678.84,0.27042121]
[1738050444854,0.29413062,679.97,678.85,0.27042121]
[1738050445054,0.29413062,679.97,678.84,0.27042121]
[1738050445254,0.29413062,679.97,678.85,0.27042121]
[1738050445452,0.29413062,679.97,678.84,0.27042121]
[1738050445653,0.29413062,679.97,678.85,0.27042121]
[1738050445852,0.29413062,679.97,678.86,0.27042121]
[1738050446055,0.29413062,679.97,678.84,0.27042121]
[1738050446254,0.29413062,679.97,678.85,0.27042121]
[1738050446557,0.29413062,679.97,678.83,1.38834934]
[1738050446757,0.29413062,679.97,678.84,0.27042262]
[1738050448757,0.29413062,679.97,678.88,1.09372477]
[1738050448957,0.29413062,679.97,678.89,0.27042262]
[1738050450258,0.29413062,679.97,678.88,1.09372477]
[1738050450455,0.29413062,679.97,678.89,0.2704216]
[1738050452460,0.29413062,679.97,678.94,1.09372477]
[1738050456160,0.29413062,679.97,678.83,0.29462457]
[1738050461560,0.24467724,679.96,678.83,0.29462457]
[1738050461761,0.29413927,679.95,678.83,0.29462457]
[1738050461965,0.24467724,679.94,678.83,0.29462457]
[1738050462162,0.29414792,679.93,678.83,0.29462457]
[1738050462361,0.24467724,679.92,678.83,0.29462457]
[1738050462562,0.53882949,679.92,678.83,0.29462457]
[1738050462763,0.24467724,679.91,678.83,0.29462457]
[1738050462963,0.24468165,679.9,678.83,0.29462457]
[1738050463165,0.24468165,679.89,678.83,0.29462457]
[1738050463363,0.24468165,679.88,678.83,0.29462457]
[1738050463559,0.24468165,679.87,678.83,0.29462457]
[1738050463759,0.24468165,679.91,678.83,0.29462457]
[1738050463960,0.24468165,679.9,678.83,0.29462457]
[1738050464160,0.24468165,679.89,678.83,0.29462457]
[1738050464359,0.24468165,679.91,678.83,0.29462457]
[1738050464566,0.29415225,679.92,678.83,0.29462457]
[1738050464865,0.24468135,679.91,678.83,0.29462457]
[1738050466564,0.24467685,679.9,678.83,0.29462457]
[1738050466768,0.24467685,679.91,678.83,0.29462457]
[1738050466967,0.24467685,679.9,678.83,0.29462457]
[1738050467167,0.24467685,679.91,678.83,0.29462457]
[1738050467364,0.24467685,679.9,678.83,0.29462457]
[1738050467566,0.24467666,679.89,678.83,0.29462457]
[1738050467869,0.24467666,679.88,678.83,0.29462457]
[1738050468070,0.24467666,679.87,678.83,0.29462457]
[1738050468270,0.24467666,679.86,678.83,0.29462457]
[1738050468569,0.24467666,679.85,678.83,0.29462457]
[1738050468869,0.29415225,679.92,678.83,0.29462457]
[1738050469070,0.24467339,679.91,678.83,0.29462457]
[1738050473672,0.2941609,679.9,678.26,1.09372477]
[1738050473873,0.2941609,679.9,678.27,0.29486782]
[1738050474075,1.83117285,679.9,678.27,1.38859259]
[1738050474271,1.83117285,679.9,678.27,2.92592141]
[1738050476376,0.24481702,679.89,678.27,2.92592141]
[1738050476571,0.29417388,679.87,678.27,2.92592141]
[1738050476776,0.24481702,679.86,678.27,2.92592141]
[1738050476969,0.29418686,679.84,678.27,2.92592141]
[1738050477174,0.24481702,679.83,678.27,2.92592141]
[1738050477373,0.29419984,679.81,678.27,2.92592141]
[1738050477573,0.24481702,679.8,678.27,2.92592141]
[1738050477775,0.2942085,679.79,678.27,2.92592141]
[1738050477976,0.24481702,679.78,678.27,1.83219664]
[1738050478178,0.29421716,679.77,678.27,1.83219664]
[1738050478373,0.24481702,679.76,678.27,1.83219664]
[1738050478575,0.29422581,679.75,678.27,1.83219664]
[1738050478775,0.24481702,679.74,678.27,1.83219664]
[1738050478976,0.29423447,679.73,678.27,1.83219664]
[1738050479176,0.24481702,679.72,678.27,1.83219664]
[1738050479578,0.29423447,679.73,678.27,1.83219664]
[1738050480679,0.24480836,679.72,678.27,1.83219664]
[1738050480873,0.29424313,679.71,678.27,1.83219664]
[1738050488185,0.24478796,679.7,678.28,0.27065384]
[1738050488378,0.29425179,679.69,678.28,0.27065384]
[1738050488575,0.24478796,679.68,678.28,0.27065384]
[1738050489181,0.29426044,679.67,678.28,0.27065384]
[1738050489378,0.24478796,679.66,678.28,0.27065384]
[1738050489782,0.53905273,679.66,678.28,0.27065384]
[1738050490178,0.53905273,679.66,678.29,0.27066493]
[1738050490179,0.24479902,679.65,678.29,0.27066493]
[1738050490384,0.24479902,679.65,678.28,0.27066493]
[1738050490679,0.53906812,679.65,678.29,0.27066493]
[1738050490883,0.53906812,679.65,677.83,1.09372477]
[1738050490884,0.29427776,679.63,677.83,1.09372477]
[1738050491084,0.29427776,679.63,678.14,1.53789497]
[1738050491085,0.24495178,679.62,678.14,1.53789497]
[1738050491300,0.29429075,679.6,677.84,0.29505488]
[1738050491478,0.24495178,679.59,677.84,0.29505488]
[1738050491682,0.24495178,679.59,678.07,1.53805923]
[1738050491879,0.24495178,679.59,677.84,0.29505488]
[1738050492084,0.29430375,679.57,677.85,1.53825753]
[1738050492284,0.24495178,679.56,677.85,1.53825753]
[1738050492480,0.29431674,679.54,678.0,1.09372477]
[1738050492781,0.24495178,679.53,678.0,1.09372477]
[1738050492982,0.29432973,679.51,678.0,1.09372477]
[1738050493183,0.24495178,679.5,678.0,1.09372477]
[1738050493383,0.29434273,679.48,678.0,1.09372477]
[1738050493585,0.24495178,679.47,678.0,1.09372477]
[1738050493785,0.29435572,679.45,678.0,1.09372477]
[1738050493987,0.24500775,679.44,678.0,1.09372477]
[1738050494487,1.53834819,679.43,678.0,1.09372477]
[1738050494687,0.29437305,679.41,678.0,1.09372477]
[1738050494889,0.24500775,679.4,678.0,1.09372477]
[1738050495090,0.29438605,679.38,678.0,1.09372477]
[1738050495283,0.24500775,679.37,678.0,1.09372477]
[1738050495788,0.29439905,679.35,678.0,1.09372477]
[1738050495987,0.24500775,679.34,678.0,1.09372477]
[1738050496189,0.24500775,679.34,677.85,1.53825753]
[1738050496489,0.29441205,679.32,677.85,1.53825753]
[1738050496889,0.24500307,679.31,677.85,1.53825753]
[1738050497288,0.29442506,679.29,677.85,1.53825753]
[1738050497489,0.24500307,679.28,677.85,1.53825753]
[1738050498288,0.29443373,679.27,677.85,1.53825753]
[1738050498691,0.24500307,679.26,677.85,1.53825753]
[1738050498892,0.29444239,679.25,677.85,1.53825753]
[1738050499094,0.24500307,679.24,677.85,1.53825753]
[1738050499392,0.29445106,679.23,677.85,1.53825753]
[1738050499590,0.24500307,679.22,677.85,1.53825753]
[1738050499790,0.29445973,679.21,677.85,1.53825753]
[1738050499990,0.24500307,679.2,677.85,1.53825753]
[1738050500292,0.29446841,679.19,677.85,1.53825753]
[1738050500493,0.24501628,679.18,677.85,1.53825753]
[1738050500692,0.29447708,679.17,677.85,1.53825753]
[1738050500893,0.24501628,679.16,677.85,1.53825753]
[1738050501390,0.29448575,679.15,677.85,1.53825753]
[1738050501590,0.24501628,679.14,677.85,1.53825753]
[1738050501892,0.29449442,679.13,677.85,1.53825753]
[1738050502392,0.24501415,679.12,677.85,1.53825753]
[1738050502593,0.29450309,679.11,677.85,1.53825753]
[1738050502788,0.24501415,679.1,677.85,1.53825753]
[1738050502994,0.29451177,679.09,677.85,1.53825753]
[1738050503893,0.24501581,679.08,677.85,1.53825753]
[1738050504991,0.29451177,679.09,677.85,1.53825753]
[1738050508298,0.2450035,679.08,677.85,1.53825753]
[1738050508499,0.29451177,679.09,677.85,1.53825753]
[1738050509298,0.29451177,679.09,677.86,0.56585817]
[1738050509599,0.29451177,679.09,677.87,0.56585382]
[1738050509799,0.29451177,679.09,677.88,0.270812]
[1738050510500,0.29451177,679.09,677.89,0.29503311]
[1738050510699,0.29451177,679.09,677.9,0.27078944]
[1738050510894,0.29451177,679.09,677.91,0.29502441]
[1738050511099,0.29451177,679.09,677.92,0.27078944]
[1738050511400,0.29451177,679.09,677.93,0.2950157]
[1738050511695,0.29451177,679.09,677.94,0.27078944]
[1738050512000,0.29451177,679.09,677.94,0.56580079]
[1738050512202,0.29451177,679.09,677.95,0.27078944]
[1738050514600,0.29451177,679.09,677.94,0.29501135]
[1738050514802,0.29451177,679.09,677.95,0.27077092]
[1738050516103,1.10004359,679.76,677.96,0.29500265]
[1738050516302,0.29423014,679.74,677.97,0.27077092]
[1738050516505,0.24487961,679.73,677.98,0.29499395]
[1738050516799,0.29424313,679.71,677.99,0.27077092]
[1738050516998,0.29424313,679.71,678.0,0.29498525]
[1738050516999,0.24487961,679.7,678.0,0.29498525]
[1738050517200,0.29425612,679.68,678.01,0.27077092]
[1738050517502,0.24487961,679.67,678.02,0.29497654]
[1738050517703,0.2942691,679.65,678.03,0.27077092]
[1738050517902,0.24487961,679.64,678.04,0.29496784]
[1738050518102,0.29427776,679.63,678.05,0.27077092]
[1738050518402,0.24487961,679.62,678.06,0.29495914]
[1738050518702,0.24487961,679.62,678.07,0.27077092]
[1738050518703,0.29428642,679.61,678.07,0.27077092]
[1738050518897,0.24487961,679.6,678.07,0.27077092]
[1738050519102,0.29429508,679.59,678.07,0.27077092]
[1738050519297,0.24487961,679.58,678.07,0.27077092]
[1738050519497,0.29430375,679.57,678.07,0.27077092]
[1738050519703,0.24487961,679.56,678.07,0.27077092]
[1738050520002,0.29431241,679.55,678.06,0.29495914]
[1738050520203,0.24487192,679.54,678.07,0.27073907]
[1738050520397,0.29432107,679.53,678.07,0.27073907]
[1738050520598,0.24487192,679.52,678.07,0.27073907]
[1738050520800,0.29432973,679.51,678.07,0.27073907]
[1738050521003,0.24487192,679.5,678.07,0.27073907]
[1738050521204,0.2943384,679.49,678.07,0.27073907]
[1738050521404,0.24487192,679.48,678.07,0.27073907]
[1738050521603,0.29434706,679.47,678.07,0.27073907]
[1738050521805,0.24487192,679.46,678.07,0.27073907]
[1738050523605,0.29434706,679.47,678.06,0.29495914]
[1738050523905,0.24486942,679.46,678.07,0.27073661]
[1738050527404,0.24486429,679.45,678.08,0.27073141]
[1738050527609,0.24486429,679.44,678.09,0.27073141]
[1738050527910,0.24486429,679.43,678.1,0.27073141]
[1738050528105,0.24486429,679.46,678.07,0.27073141]
[1738050528310,0.24486429,679.45,678.08,0.27073141]
[1738050528511,0.24486429,679.46,678.07,0.27073141]
[1738050528714,0.24486429,679.45,678.08,0.27073141]
[1738050528911,0.24486429,679.46,678.07,0.27073141]
[1738050529206,0.24486429,679.45,678.08,0.27073141]
[1738050529511,0.24486429,679.44,678.09,0.27073141]
[1738050529712,0.24486429,679.46,678.07,0.27073141]
[1738050530807,0.29434706,679.47,678.06,0.29495914]
[1738050531011,0.24486425,679.46,678.07,0.27073138]
[1738050532813,0.29434706,679.47,678.06,0.29495914]
[1738050533014,0.24485251,679.46,678.07,0.27071949]
[1738050533613,0.24485251,679.46,678.08,0.29495044]
[1738050533810,0.24485251,679.46,678.09,0.27071949]
[1738050534007,0.24485251,679.46,678.1,0.29494174]
[1738050534309,0.24485251,679.46,678.11,0.27071949]
[1738050540015,0.2448512,679.45,678.12,0.27071799]
[1738050540211,0.2448512,679.44,678.13,0.27071799]
[1738050540417,0.2448512,679.43,678.14,0.27071799]
[1738050540616,0.2448512,679.42,678.15,0.27071799]
[1738050540812,0.2448512,679.46,678.11,0.27071799]
[1738050541014,0.2448512,679.45,678.1,0.29494174]
[1738050541317,0.244857,679.44,678.11,0.27072383]
[1738050541518,0.29434706,679.47,678.11,0.27072383]
[1738050541519,0.244857,679.46,678.11,0.27072383]
[1738050541711,0.244857,679.45,678.11,0.27072383]
[1738050541913,0.244857,679.44,678.11,0.27072383]
[1738050542114,0.244857,679.46,678.11,0.27072383]
[1738050542916,0.29434706,679.47,678.1,0.29494174]
[1738050543317,0.24487242,679.46,678.1,0.29494174]
[1738050543517,0.29435572,679.45,678.1,0.29494174]
[1738050546921,1.10004359,679.42,678.1,0.29494174]
[1738050547121,1.39441231,679.42,678.1,0.29494174]
[1738050549720,1.10004359,679.39,678.1,0.29494174]
[1738050552824,0.24486214,679.38,678.11,0.27072916]
[1738050553126,1.10004359,679.3,678.11,0.27072916]
[1738050553325,0.24486214,679.29,678.11,0.27072916]
[1738050555622,1.10004359,679.3,678.1,0.29494174]
[1738050555831,0.29436872,679.42,678.1,0.29494174]
[1738050555832,1.10004359,679.17,678.26,1.09372477]
[1738050556022,1.10004359,679.17,678.27,0.27072107]
[1738050556529,1.10004359,679.17,678.26,1.09372477]
[1738050558924,1.10004359,679.4,678.23,1.09372477]
[1738050561928,1.10004359,679.4,678.24,0.27066389]
[1738050562725,0.29436872,679.42,678.25,0.27066327]
[1738050562922,0.29436872,679.42,678.26,0.27066327]
[1738050563126,0.29436872,679.42,678.16,0.27066327]
[1738050563326,0.29436872,679.42,678.17,0.56557457]
[1738050563522,0.29436872,679.42,678.15,1.09372477]
[1738050563523,0.29436872,679.42,678.18,0.56557022]
[1738050563726,0.29436872,679.42,678.19,0.56556587]
[1738050564025,0.29436872,679.42,678.2,0.56556153]
[1738050564223,0.29436872,679.42,678.21,0.56555718]
[1738050564428,0.29436872,679.42,678.22,0.56555283]
[1738050564628,0.29436872,679.42,678.23,0.27066327]
[1738050568129,0.24479937,679.41,678.24,0.27066553]
[1738050568531,0.24479937,679.41,678.25,0.27066553]
[1738050568828,0.24479937,679.41,678.26,0.27066553]
[1738050569027,0.24479937,679.41,678.23,0.27066553]
[1738050569224,0.24479937,679.41,678.24,0.27066553]
[1738050569427,0.24479937,679.41,678.23,0.27066553]
[1738050569628,0.24479937,679.41,678.24,0.27066553]
[1738050569822,0.24479937,679.41,678.25,0.27066553]
[1738050570028,0.24480947,679.4,678.26,0.27067573]
[1738050570330,0.24480947,679.39,678.27,0.27067573]
[1738050570531,0.24480947,679.38,678.28,0.27067573]
[1738050570827,0.29436872,679.42,678.29,0.27066769]
[1738050571026,0.24479716,679.41,678.23,0.27066769]
[1738050571234,0.24479716,679.41,678.24,0.27066769]
[1738050571532,1.39441231,679.42,678.24,0.27066769]
[1738050573534,1.39441231,679.42,678.23,1.09372477]
[1738050573535,1.39441231,679.42,678.25,0.27066384]
[1738050573728,1.39441231,679.42,678.26,0.27066384]
[1738050573928,1.39441231,679.42,678.27,0.27066384]
[1738050574128,1.39441231,679.42,678.24,0.27066384]
[1738050574330,1.39441231,679.42,678.28,0.27066384]
[1738050574533,0.29436872,679.42,678.29,0.27066384]
[1738050574731,0.29436872,679.42,678.23,0.27066384]
[1738050574933,0.29436872,679.42,678.24,0.27066384]
[1738050575129,0.29436872,679.42,678.25,0.27066384]
[1738050575332,0.29436872,679.42,678.22,0.29488956]
[1738050575536,0.29436872,679.42,678.23,0.27067055]
[1738050579636,0.29436872,679.42,678.24,0.27066155]
[1738050579839,0.29436872,679.42,678.23,0.27066155]
[1738050580038,0.29436872,679.42,678.24,0.27066155]
[1738050580236,0.29436872,679.42,678.25,0.27066155]
[1738050580439,0.29436872,679.42,678.22,0.29488956]
[1738050580440,0.29436872,679.42,678.26,0.27066155]
[1738050580641,0.29436872,679.42,678.23,0.27066155]
[1738050580839,0.29436872,679.42,678.24,0.27066155]
[1738050581040,0.29436872,679.42,678.22,0.29488956]
[1738050581041,0.29436872,679.42,678.23,0.27066155]
[1738050581242,0.29436872,679.42,678.24,0.27066155]
[1738050581441,0.29436872,679.42,678.25,0.27066155]
[1738050581642,0.29436872,679.42,678.23,0.27066155]
[1738050581837,0.29436872,679.42,678.24,0.27066155]
[1738050582040,0.24479559,679.41,678.25,0.27066155]
[1738050582241,0.24479559,679.41,678.23,0.27066155]
[1738050582441,0.29436872,679.42,678.22,0.29488956]
[1738050582643,0.24479523,679.41,678.23,0.27066124]
[1738050583545,0.24479523,679.41,678.3,1.09372477]
[1738050583746,0.24479523,679.41,678.31,0.27066124]
[1738050585144,0.29436872,679.42,678.31,0.27066124]
[1738050585846,0.24478967,679.41,678.31,0.27066124]
[1738050586242,0.29436872,679.42,678.31,0.27066124]
[1738050587448,0.29436872,679.42,678.33,1.09372477]
[1738050587642,0.29436872,679.42,678.34,0.27066124]
[1738050591149,0.29436872,679.42,678.37,1.09372477]
[1738050591450,0.29436872,679.42,678.38,0.27066124]
[1738050593244,0.29436872,679.42,678.37,1.09372477]
[1738050593245,0.29436872,679.42,678.39,0.2706437]
[1738050593449,0.29436872,679.42,678.4,0.2706437]
[1738050593645,0.29436872,679.42,678.41,0.2706437]
[1738050593847,0.29436872,679.42,678.42,0.2706437]
[1738050594043,0.29436872,679.42,678.37,1.09372477]
[1738050594247,0.29436872,679.42,678.38,0.27064106]
[1738050594952,0.29436872,679.42,678.42,1.09372477]
[1738050595152,0.29436872,679.42,678.43,0.27064219]
[1738050595351,0.29436872,679.42,678.42,1.09372477]
[1738050595651,0.29436872,679.42,678.43,0.27064526]
[1738050598549,0.29436872,679.42,678.42,1.09372477]
[1738050600551,1.10004359,679.43,678.42,1.09372477]
[1738050601054,5.25802041,687.35,678.27,1.53745334]
[1738050601055,1.10004359,679.59,678.37,1.09372477]
[1738050601254,1.10004359,679.59,678.38,0.29482001]
[1738050604356,1.10004359,679.59,678.36,1.09372477]
[1738050604357,0.29429942,679.58,678.36,1.09372477]
[1738050604554,0.2447017,679.57,678.36,1.09372477]
[1738050604754,0.29431241,679.55,678.36,1.09372477]
[1738050604953,0.2447017,679.54,678.36,1.09372477]
[1738050605160,0.2943254,679.52,678.36,1.09372477]
[1738050605357,0.2447017,679.51,678.36,1.09372477]
[1738050605558,0.2943384,679.49,678.36,1.09372477]
[1738050605857,0.2447017,679.48,678.36,1.09372477]
[1738050606156,0.29435139,679.46,678.36,1.09372477]
[1738050606356,0.2447017,679.45,678.36,1.09372477]
[1738050606658,0.29436439,679.43,678.14,1.09372477]
[1738050606958,0.2447017,679.42,678.14,1.09372477]
[1738050607256,0.29437739,679.4,678.14,1.09372477]
[1738050607457,0.24463185,679.39,678.14,1.09372477]
[1738050607654,0.29439039,679.37,678.14,1.09372477]
[1738050607854,0.24463185,679.36,678.14,1.09372477]
[1738050608151,0.29439905,679.35,678.14,1.09372477]
[1738050608357,0.24463185,679.34,678.14,1.09372477]
[1738050608552,0.29440772,679.33,678.14,1.09372477]
[1738050608758,0.24463185,679.32,678.14,1.09372477]
[1738050608959,0.29441639,679.31,678.14,1.09372477]
[1738050609257,0.24463185,679.3,678.14,1.09372477]
[1738050609451,0.29442506,679.29,678.14,1.09372477]
[1738050609655,0.24463185,679.28,678.14,1.09372477]
[1738050609856,0.29443373,679.27,677.39,1.09372477]
[1738050610052,0.29443373,679.27,678.11,1.5382122]